bitfinex-derivatives/quotes_ETHF0:USTF0_20250220
["timestamp","ask_amount","ask_price","bid_price","bid_amount"]
[1740063666122,0.00549199,2731.1,2731.0,0.73217]
[1740063666618,3.015,2732.0,2730.9,1.1448]
[1740063666821,3.2078,2732.3,2731.5,3.2078]
[1740063667134,1.82969,2732.1,2731.2,3.2078]
[1740063667422,1.82969,2732.1,2730.6,1.83064]
[1740063667423,0.73222,2730.8,2730.7,3.2078]
[1740063667629,6.2418,2730.9,2730.2,3.2078]
[1740063667818,3.036,2730.8,2730.5,0.00549199]
[1740063668024,0.73227,2730.6,2730.5,0.00549199]
[1740063668224,3.036,2730.8,2730.5,0.00549199]
[1740063668225,0.73226,2730.7,2730.5,0.00549199]
[1740063668419,3.036,2730.8,2730.5,0.00549199]
[1740063668619,3.94007,2730.6,2730.5,0.00549199]
[1740063668831,0.73246,2729.9,2729.6,0.567]
[1740063669029,0.73252,2729.7,2729.6,0.567]
[1740063669340,3.2078,2729.7,2729.0,3.2078]
[1740063669525,0.73261,2729.4,2729.0,3.2078]
[1740063669725,6.2458,2729.7,2729.0,0.73268]
[1740063669931,0.73258,2729.5,2728.9,0.73272]
[1740063670124,0.73807199,2729.5,2728.9,0.73821199]
[1740063670426,0.73807199,2729.5,2728.9,0.00549199]
[1740063670427,0.00549199,2729.5,2728.9,0.00549199]
[1740063670631,3.2078,2729.3,2728.9,0.00549199]
[1740063671032,3.9405,2729.0,2728.9,0.00549199]
[1740063671224,3.9405,2729.0,2727.9,23.5218]
[1740063671225,0.73289,2728.4,2727.9,3.2078]
[1740063671432,0.73289,2728.4,2727.4,3.034]
[1740063671433,3.2078,2728.4,2727.7,0.5461]
[1740063671935,6.2458,2728.4,2727.7,0.5461]
[1740063672428,6.2458,2728.4,2727.8,0.00549199]
[1740063672835,0.73291,2728.3,2727.8,0.00549199]
[1740063673030,6.2458,2728.4,2727.8,0.00549199]
[1740063673338,3.2078,2727.9,2727.8,0.00549199]
[1740063673528,3.94072,2728.2,2727.8,0.00549199]
[1740063673725,3.2078,2728.5,2727.9,0.733]
[1740063673924,3.2078,2729.3,2728.9,0.73272]
[1740063674130,3.2078,2729.0,2728.4,3.6078]
[1740063674331,3.2078,2729.0,2728.4,0.4]
[1740063674929,0.73277,2728.8,2728.4,0.4]
[1740063675122,3.035,2729.1,2727.8,3.21329199]
[1740063675123,3.2078,2728.7,2727.8,3.21329199]
[1740063675328,0.73293,2728.2,2727.8,0.00549199]
[1740063675525,3.2078,2728.4,2727.8,0.00549199]
[1740063675831,3.2078,2728.7,2728.4,0.73286]
[1740063676036,3.2078,2728.7,2728.0,3.2078]
[1740063676231,3.2078,2728.7,2728.2,3.2078]
[1740063676830,3.04149199,2729.0,2728.5,3.2078]
[1740063676831,3.21329199,2729.0,2728.5,3.2078]
[1740063677134,0.00549199,2729.0,2728.8,3.2078]
[1740063677537,0.00549199,2729.0,2728.9,0.73273]
[1740063677933,0.00549199,2729.0,2728.8,3.2078]
[1740063678134,0.73273,2728.9,2728.8,3.2078]
[1740063678833,0.73281,2728.6,2728.5,2.975]
[1740063679332,0.73281,2728.6,2728.2,0.4]
[1740063679333,0.00549199,2729.0,2728.3,3.2078]
[1740063679836,0.00549199,2729.0,2728.7,3.2078]
[1740063680036,0.00549199,2729.0,2728.3,2.975]
[1740063680434,0.73275,2728.9,2728.4,3.2078]
[1740063680734,3.21329199,2729.0,2728.3,2.975]
[1740063680927,0.73286,2728.4,2728.3,2.975]
[1740063681131,0.73292,2728.2,2728.1,0.5394]
[1740063681435,3.2078,2728.5,2727.9,9.96979]
[1740063681630,3.2078,2728.5,2727.9,6.029]
[1740063682232,3.2078,2728.5,2727.8,0.00549199]
[1740063682430,0.73298,2728.0,2727.8,0.00549199]
[1740063682633,3.9408,2727.9,2727.8,0.00549199]
[1740063683231,3.2078,2727.9,2727.8,0.00549199]
[1740063683538,3.9408,2727.9,2727.8,0.00549199]
[1740063684642,3.2078,2727.9,2727.8,0.00549199]
[1740063684835,3.9408,2727.9,2727.8,1.99e-06]
[1740063685339,10.5257,2727.9,2727.8,1.99e-06]
[1740063685542,13.58807646,2727.9,2727.8,1.99e-06]
[1740063686239,12.8577,2727.9,2726.6,0.01312]
[1740063686539,12.8577,2727.9,2725.6,3.2078]
[1740063686540,3.2078,2726.7,2725.6,3.2078]
[1740063686742,3.2078,2726.2,2725.6,3.2078]
[1740063687041,3.076,2726.1,2725.3,3.2078]
[1740063687443,3.2078,2725.9,2725.3,3.2078]
[1740063687643,3.94135,2725.9,2725.4,0.00550227]
[1740063687843,3.2078,2725.6,2725.4,0.00550227]
[1740063688031,6.2888,2725.6,2725.4,0.00550227]
[1740063688338,6.2888,2725.6,2724.7,0.73383]
[1740063688539,3.2078,2725.5,2724.5,3.2078]
[1740063688835,3.2078,2725.5,2724.2,0.5832]
[1740063688836,3.2078,2725.9,2725.8,0.73356]
[1740063689042,0.00550227,2726.0,2725.9,0.73354]
[1740063689043,3.08650227,2726.0,2725.9,0.73354]
[1740063689340,0.00550227,2726.0,2725.2,3.2078]
[1740063689536,3.2078,2725.9,2725.1,0.5832]
[1740063689735,0.73362,2725.6,2725.1,0.5832]
[1740063689941,6.2908,2725.9,2725.0,0.73377]
[1740063690138,3.2078,2725.6,2724.6,3.2078]
[1740063690334,3.2078,2725.6,2724.9,3.2078]
[1740063690643,2.96,2725.8,2724.9,3.2078]
[1740063690840,3.2078,2725.9,2725.8,0.73356]
[1740063691032,0.00550227,2726.0,2725.4,3.2078]
[1740063691238,0.00550227,2726.0,2725.3,2.975]
[1740063691438,0.73356,2725.8,2725.3,2.975]
[1740063691638,0.73361,2725.7,2725.3,2.975]
[1740063691846,3.2078,2725.9,2725.3,2.975]
[1740063692341,3.94147,2725.4,2725.3,2.975]
[1740063692541,3.2078,2725.4,2724.2,3.2078]
[1740063692744,0.73387,2724.7,2724.2,3.2078]
[1740063692944,0.73385,2724.8,2724.2,3.2078]
[1740063693145,3.096,2725.0,2724.2,3.2078]
[1740063693338,0.73387,2724.7,2724.2,3.94178]
[1740063693548,3.94165,2724.8,2724.3,0.73396]
[1740063693844,0.73392,2724.5,2724.1,2.975]
[1740063694044,0.7339,2724.6,2724.1,2.975]
[1740063694240,3.94715227,2724.8,2724.4,0.73393]
[1740063694544,3.21330227,2724.8,2724.1,2.975]
[1740063694745,3.2078,2725.4,2724.3,1.83488]
[1740063694945,3.2078,2725.4,2724.3,3.085]
[1740063695147,3.2078,2725.4,2724.5,3.2078]
[1740063695347,0.73372,2725.3,2724.9,0.7338]
[1740063695550,3.2078,2725.0,2724.2,3.2078]
[1740063695847,3.2078,2725.0,2724.3,0.73395]
[1740063696146,0.00550227,2724.9,2724.3,3.21330227]
[1740063696447,3.2078,2725.9,2724.6,3.2078]
[1740063696646,3.2078,2725.9,2724.4,4.1142]
[1740063696647,0.73358,2725.8,2725.5,0.73362]
[1740063696844,1.1498,2727.0,2724.7,0.5491]
[1740063696845,3.2078,2725.6,2724.7,0.5491]
[1740063697044,3.2078,2725.3,2724.7,0.5491]
[1740063697241,3.2078,2725.3,2724.4,1.1392]
[1740063697242,3.2078,2725.0,2724.4,4.1142]
[1740063697443,0.73394,2724.4,2724.3,0.00550227]
[1740063697641,0.73394,2724.4,2723.5,3.101]
[1740063697642,3.2078,2724.6,2723.3,0.5876]
[1740063697841,3.2078,2724.3,2723.3,0.5876]
[1740063698247,3.2078,2723.8,2722.9,3.2078]
[1740063698445,3.2078,2723.8,2723.2,3.2078]
[1740063698743,1.83464,2724.8,2723.2,3.2078]
[1740063698744,3.2078,2724.1,2723.2,3.2078]
[1740063698944,0.00550227,2723.8,2723.2,3.21330227]
[1740063699141,0.00550227,2723.8,2723.7,0.73413]
[1740063699343,0.00550227,2723.8,2723.5,3.2078]
[1740063699547,0.00550227,2723.8,2723.5,3.94196]
[1740063699743,0.73413,2723.7,2723.5,3.2078]
[1740063699945,0.00550227,2723.8,2723.5,3.2078]
[1740063700246,3.2078,2724.8,2723.7,0.73413]
[1740063700447,3.2078,2724.8,2723.8,6.1828]
[1740063700644,3.2078,2724.8,2724.3,3.2078]
[1740063700854,6.3268,2725.1,2725.0,0.73378]
[1740063701348,3.119,2725.1,2724.4,3.5516]
[1740063701548,3.2078,2724.5,2723.9,0.5541]
[1740063701747,3.2078,2724.5,2723.8,0.73409]
[1740063701951,0.73404,2724.1,2723.9,0.00550227]
[1740063702157,0.73405,2724.0,2723.9,0.00550227]
[1740063703253,9.121,2724.0,2722.9,0.5667]
[1740063703554,3.2078,2723.2,2721.7,3.2078]
[1740063703756,3.2078,2722.4,2721.4,1.83687]
[1740063703946,3.2078,2722.3,2722.2,0.73453]
[1740063704146,3.2078,2722.3,2721.5,3.2078]
[1740063704353,6.3628,2722.9,2721.8,3.2078]
[1740063704548,0.00550227,2722.2,2722.1,0.73456]
[1740063705154,3.2078,2722.9,2722.1,9.2078]
[1740063705361,3.2078,2722.7,2721.6,3.16850227]
[1740063705554,23.516,2723.4,2721.6,3.16850227]
[1740063705555,3.2078,2723.0,2722.1,3.2078]
[1740063705754,3.2078,2723.3,2723.2,0.73426]
[1740063706150,3.2078,2723.6,2723.5,0.73418]
[1740063706358,0.5362,2724.2,2723.6,0.73415]
[1740063706359,3.2078,2723.9,2723.6,0.73415]
[1740063706552,3.2078,2724.2,2724.1,0.73402]
[1740063707157,3.2078,2724.2,2723.6,0.5331]
[1740063708060,0.00550227,2724.4,2723.7,3.2078]
[1740063708461,0.00550227,2724.4,2724.3,0.73397]
[1740063708668,2.27e-06,2724.4,2724.3,0.73397]
[1740063708852,2.27e-06,2724.4,2724.0,0.73403]
[1740063709166,2.27e-06,2724.4,2723.6,0.5331]
[1740063709167,3.2078,2724.2,2723.6,0.5331]
[1740063709462,3.2078,2723.9,2723.0,0.59320227]
[1740063709662,3.2078,2723.9,2723.0,1.17810227]
[1740063709863,3.2078,2723.9,2723.1,3.2078]
[1740063710053,3.2078,2723.9,2723.0,1.17810227]
[1740063710260,3.2078,2723.4,2723.1,0.73427]
[1740063710559,3.2078,2723.4,2723.0,0.00550227]
[1740063710759,6.4198,2724.0,2723.0,0.00550227]
[1740063710961,3.2078,2723.7,2723.6,0.73416]
[1740063711256,3.2078,2723.7,2723.1,3.2078]
[1740063711257,3.2078,2723.7,2723.1,0.73429]
[1740063711462,3.2078,2723.4,2723.1,0.73427]
[1740063711657,3.2078,2723.4,2723.0,0.00550227]
[1740063711860,3.94201,2723.4,2723.0,0.00550227]
[1740063712057,3.2078,2723.1,2723.0,0.00550227]
[1740063712455,3.2078,2723.4,2723.0,0.00550227]
[1740063713365,3.2078,2723.7,2723.6,0.73416]
[1740063713566,3.2078,2723.7,2723.0,3.21330227]
[1740063713767,3.2078,2723.7,2723.2,0.73425]
[1740063713962,3.2078,2723.7,2723.1,2.975]
[1740063714269,3.2078,2724.3,2723.4,1.83553]
[1740063714463,3.2078,2724.3,2724.2,0.73399]
[1740063714658,3.2078,2725.0,2724.3,0.73397]
[1740063714962,22.19356,2726.4,2724.3,7.50477]
[1740063714963,3.2078,2725.6,2724.3,7.50477]
[1740063715160,3.2078,2725.6,2725.5,0.73364]
[1740063715362,3.2078,2725.9,2725.2,2.975]
[1740063715562,3.2078,2725.6,2725.2,2.975]
[1740063715764,3.94143,2725.6,2725.2,2.975]
[1740063715962,3.2078,2725.6,2725.2,2.975]
[1740063716163,3.2078,2725.6,2724.8,3.224]
[1740063716364,3.2078,2725.6,2725.1,0.00550227]
[1740063717163,3.2078,2725.6,2725.1,0.73923227]
[1740063717362,3.2078,2725.2,2725.1,0.00550227]
[1740063717564,0.00550227,2725.7,2725.1,0.00550227]
[1740063717565,3.2078,2725.6,2725.1,0.00550227]
[1740063717768,3.2078,2725.6,2725.5,0.73364]
[1740063719061,3.2078,2725.6,2725.1,0.00550227]
[1740063719967,3.2078,2725.6,2725.5,0.73364]
[1740063720166,3.2078,2725.6,2725.1,0.00550227]
[1740063720167,0.00550227,2725.7,2725.6,0.73362]
[1740063720370,0.00550227,2725.7,2725.6,3.70862]
[1740063720970,3.2078,2726.4,2726.3,0.73341]
[1740063721265,3.2078,2726.4,2725.8,2.975]
[1740063721469,3.201,2726.5,2725.8,4.80889]
[1740063721470,3.2078,2726.5,2725.8,4.80889]
[1740063721663,3.2078,2726.6,2725.8,2.975]
[1740063721859,3.2078,2726.6,2726.5,0.73337]
[1740063722062,0.73346,2726.2,2725.9,0.73351]
[1740063722264,3.2078,2726.3,2725.8,2.975]
[1740063722562,3.2078,2726.3,2726.2,0.73346]
[1740063722963,0.00550227,2726.5,2725.8,9.73489]
[1740063723164,3.2078,2726.4,2725.8,7.901]
[1740063723364,0.00550227,2726.5,2725.9,1.83382]
[1740063723575,2.27e-06,2726.5,2726.4,0.7334]
[1740063723761,3.2078,2727.5,2726.4,9.202]
[1740063723963,3.2078,2728.0,2727.9,0.733]
[1740063724365,3.2078,2728.0,2727.1,3.2078]
[1740063724566,3.2078,2728.2,2727.0,3.2078]
[1740063724767,3.2078,2728.2,2728.1,0.73294]
[1740063725271,0.00550227,2728.4,2728.0,3.208]
[1740063725474,0.00550227,2728.4,2728.0,6.183]
[1740063725676,0.00550227,2728.4,2728.1,0.73292]
[1740063725873,3.2078,2728.2,2728.0,2.975]
[1740063726070,3.2078,2728.2,2727.6,0.5898]
[1740063726264,3.2078,2727.9,2727.3,0.00550227]
[1740063726467,3.2078,2727.6,2727.3,0.00550227]
[1740063726662,3.2078,2727.6,2726.9,4.926]
[1740063726868,3.2078,2727.0,2726.2,24.113]
[1740063727163,0.73346,2726.2,2725.7,3.51640479]
[1740063727369,3.2078,2726.0,2725.7,3.221]
[1740063727767,3.2078,2726.0,2725.8,0.73356]
[1740063727971,0.00550227,2726.1,2726.0,0.73351]
[1740063728169,3.2078,2727.2,2725.9,1.83379]
[1740063728365,3.2078,2727.2,2726.4,3.2078]
[1740063728569,3.9409,2727.6,2726.5,3.221]
[1740063728773,3.94089,2727.6,2727.1,0.7332]
[1740063728965,3.2078,2727.2,2726.5,4.3372]
[1740063729367,0.73322,2727.1,2726.6,0.73332]
[1740063729568,3.94107,2726.9,2726.6,0.00550227]
[1740063729773,3.2078,2726.9,2726.6,0.00550227]
[1740063729977,0.73332,2726.7,2726.6,0.00550227]
[1740063730469,3.223,2726.7,2725.7,4.3402]
[1740063730773,3.2078,2726.1,2725.5,3.223]
[1740063731180,3.2078,2726.1,2726.0,0.73351]
[1740063731376,3.2078,2726.1,2725.5,3.223]
[1740063731677,3.2078,2726.1,2726.0,0.73351]
[1740063732070,3.2078,2726.8,2726.5,0.73336]
[1740063732267,0.73332,2726.7,2725.6,1.83405]
[1740063732475,3.94128,2726.2,2725.5,6.43630227]
[1740063732774,3.2078,2726.2,2726.1,0.73348]
[1740063732971,3.2078,2726.2,2725.5,0.00550227]
[1740063733182,0.7335,2726.1,2725.5,0.00550227]
[1740063733383,3.2078,2726.2,2725.5,0.00550227]
[1740063733867,3.2078,2725.8,2725.5,0.00550227]
[1740063734072,0.73362,2725.6,2725.5,0.00550227]
[1740063734270,0.73362,2725.6,2724.2,3.2078]
[1740063734271,3.217,2725.6,2724.6,0.73388]
[1740063734469,3.2078,2724.9,2724.2,3.2078]
[1740063734670,3.2078,2725.3,2725.2,0.73372]
[1740063734878,3.2078,2725.3,2724.4,5.05286]
[1740063735079,0.73375,2725.1,2724.7,0.73385]
[1740063735279,3.2078,2724.9,2724.3,3.2078]
[1740063735478,3.2078,2724.4,2724.0,3.7963]
[1740063735678,3.2078,2724.7,2724.0,3.7963]
[1740063735871,3.2078,2724.7,2723.5,0.5363]
[1740063735872,3.2078,2724.4,2724.3,0.00550227]
[1740063736175,3.94174,2724.4,2724.3,0.00550227]
[1740063736377,3.2078,2724.4,2724.3,0.00550227]
[1740063736585,3.2078,2724.7,2724.3,0.00550227]
[1740063736883,0.7339,2724.6,2724.3,0.00550227]
[1740063737077,3.94174,2724.4,2724.3,0.00550227]
[1740063737982,3.2078,2724.7,2724.3,0.00550227]
[1740063738278,3.2078,2724.4,2723.1,4.3631]
[1740063738478,3.2078,2724.4,2723.4,3.2078]
[1740063738678,3.2078,2724.1,2724.0,0.73405]
[1740063738880,3.2078,2724.4,2723.5,3.225]
[1740063739080,3.2078,2724.4,2724.2,0.73398]
[1740063739280,3.2078,2724.4,2723.7,3.2078]
[1740063739281,3.2078,2724.4,2724.3,0.73397]
[1740063739475,3.2078,2725.1,2724.3,3.94177]
[1740063739677,3.2078,2725.1,2724.2,0.73399]
[1740063739885,3.2078,2725.1,2725.0,0.73378]
[1740063740077,3.2078,2725.1,2725.0,4.63378]
[1740063740275,3.94155,2725.1,2725.0,3.9]
[1740063740488,3.2078,2725.1,2724.3,0.5918]
[1740063740784,3.2078,2724.8,2724.3,0.5918]
[1740063740974,3.21330227,2725.2,2724.4,3.9]
[1740063741182,3.2078,2724.9,2724.4,3.9]
[1740063741482,3.21330227,2725.2,2724.4,3.9]
[1740063741678,0.73375,2725.1,2724.8,0.73382]
[1740063742085,3.21330227,2725.2,2724.3,0.5918]
[1740063742287,0.73394,2724.4,2724.2,0.5868]
[1740063742484,0.73402,2724.1,2724.0,0.00550227]
[1740063742686,3.94182,2724.1,2724.0,0.00550227]
[1740063743380,3.2078,2724.1,2723.3,3.2078]
[1740063743584,3.2078,2724.2,2723.3,3.2078]
[1740063743785,3.2078,2724.2,2723.4,3.228]
[1740063744083,3.2078,2724.2,2724.1,0.73402]
[1740063744285,3.2078,2724.8,2723.9,3.2078]
[1740063744476,3.2078,2725.2,2725.1,0.73375]
[1740063744681,3.94153,2725.2,2724.4,3.231]
[1740063744983,0.00550227,2724.6,2724.5,0.73391]
[1740063745285,0.00550227,2724.6,2724.5,0.73941227]
[1740063745485,0.00550227,2724.6,2724.5,4.63941227]
[1740063745681,3.21330227,2724.6,2724.5,0.00550227]
[1740063745881,3.21330227,2724.6,2724.5,0.73941227]
[1740063746185,0.00550227,2724.6,2724.5,0.73941227]
[1740063746484,0.00550227,2724.6,2724.5,7.18421227]
[1740063746880,2.27e-06,2724.6,2724.5,13.18421227]
[1740063747076,3.20780227,2724.6,2724.5,3.90550227]
[1740063747386,2.27e-06,2724.6,2724.5,0.73941227]
[1740063747589,2.27e-06,2724.6,2724.5,6.73941227]
[1740063747782,2.27e-06,2724.6,2724.5,10.63941227]
[1740063747988,2.27e-06,2724.6,2724.5,14.15041227]
[1740063748286,2.27e-06,2724.6,2724.5,14.72981227]
[1740063748493,2.27e-06,2724.6,2724.5,8.72981227]
[1740063748882,2.27e-06,2724.6,2724.5,4.82981227]
[1740063749087,2.27e-06,2724.6,2724.5,3.51650227]
[1740063749289,2.27e-06,2724.6,2724.5,4.25041227]
[1740063749485,2.27e-06,2724.6,2724.5,8.15041227]
[1740063749990,2.27e-06,2724.6,2724.5,0.73941227]
[1740063750483,2.27e-06,2724.6,2724.5,10.22741227]
[1740063750694,2.27e-06,2724.6,2724.5,10.79041227]
[1740063750892,3.2078,2726.0,2725.7,0.73358]
[1740063751085,3.2078,2726.0,2725.3,3.485]
[1740063751280,0.73358,2725.8,2725.3,3.485]
[1740063751485,3.2078,2726.0,2725.3,3.485]
[1740063751685,0.73355,2725.9,2725.7,0.73358]
[1740063751990,3.2078,2726.0,2725.3,3.485]
[1740063752190,3.2078,2725.4,2725.0,0.5836]
[1740063752391,0.73375,2725.1,2725.0,4.0566]
[1740063752692,0.73384,2724.8,2724.6,0.73387]
[1740063752879,3.2078,2725.1,2724.5,0.57320227]
[1740063753083,3.2078,2724.8,2724.5,0.00550227]
[1740063753279,3.2078,2725.1,2724.5,0.00550227]
[1740063753686,0.73389,2724.6,2724.5,0.00550227]
[1740063754088,3.2078,2724.8,2723.5,1.83546]
[1740063754397,3.2078,2724.6,2723.5,5.04325]
[1740063754589,3.2078,2724.6,2723.5,1.83545]
[1740063754797,3.2078,2724.6,2723.7,3.2078]
[1740063755089,3.2078,2724.6,2723.8,6.6678]
[1740063755390,0.00550227,2724.4,2724.3,0.73397]
[1740063755988,0.00550227,2724.4,2723.9,0.00550227]
[1740063756391,2.27e-06,2724.4,2724.3,3.94177]
[1740063756888,3.20780227,2724.4,2724.3,0.73397]
[1740063757281,2.27e-06,2724.4,2724.3,0.73397]
[1740063758495,2.27e-06,2724.4,2724.3,13.14497]
[1740063758685,2.27e-06,2724.4,2724.3,11.93457]
[1740063758889,3.2078,2726.0,2725.9,0.73354]
[1740063759288,3.2078,2726.0,2725.3,1.83422]
[1740063759289,3.2078,2726.0,2725.3,1.83419]
[1740063759482,3.2078,2726.0,2725.9,0.73354]
[1740063759888,3.2078,2726.5,2725.5,3.2078]
[1740063760093,0.00550227,2726.2,2726.1,0.73348]
[1740063760293,3.94677227,2726.2,2725.7,0.00550227]
[1740063760492,3.21330227,2726.2,2726.1,0.73348]
[1740063760798,3.21330227,2726.2,2725.7,0.00550227]
[1740063760994,3.21330227,2726.2,2726.1,0.73348]
[1740063761290,3.21330227,2726.2,2725.7,0.00550227]
[1740063761291,0.73356,2725.8,2725.7,0.00550227]
[1740063761488,3.94136,2725.8,2725.7,0.00550227]
[1740063761896,3.2078,2725.8,2725.7,0.00550227]
[1740063762191,3.2078,2725.8,2725.7,0.73909227]
[1740063762394,0.00550227,2726.2,2725.7,0.73909227]
[1740063762395,2.27e-06,2726.2,2726.1,0.73348]
[1740063762890,2.27e-06,2726.2,2726.0,3.415]
[1740063763092,2.27e-06,2726.2,2726.1,4.63348]
[1740063763298,2.27e-06,2726.2,2726.1,10.63348]
[1740063763698,2.27e-06,2726.2,2726.1,4.63348]
[1740063764097,2.27e-06,2726.2,2726.1,10.63348]
[1740063764498,2.27e-06,2726.2,2726.1,11.00846484]
[1740063764695,2.96,2728.3,2726.1,10.64218484]
[1740063764696,3.2078,2728.1,2726.1,10.64218484]
[1740063764889,3.2078,2728.1,2726.9,3.2078]
[1740063765094,3.2078,2728.1,2726.1,4.2672]
[1740063765095,3.2078,2727.8,2727.0,4.5191]
[1740063765305,3.2078,2728.1,2727.0,7.4941]
[1740063765595,3.2078,2728.1,2727.2,3.2078]
[1740063765800,3.2078,2728.1,2727.9,0.73299]
[1740063766101,3.2078,2728.1,2727.8,0.73301]
[1740063766600,3.2078,2728.1,2727.7,3.391]
[1740063766796,3.2078,2728.1,2727.9,0.73299]
[1740063767001,0.00550227,2728.3,2727.7,3.391]
[1740063767296,0.00550227,2728.3,2728.2,0.73292]
[1740063767496,0.00550227,2728.3,2728.2,4.11192]
[1740063768005,0.00550227,2728.3,2728.2,4.10692]
[1740063768700,0.00550227,2728.3,2728.2,7.31472]
[1740063769003,3.664,2731.8,2728.2,7.31472]
[1740063769004,3.9404,2729.4,2728.3,1.83223]
[1740063769196,3.9404,2729.4,2728.9,0.73272]
[1740063769197,0.73264,2729.3,2728.9,0.73272]
[1740063769405,3.2078,2729.4,2728.9,3.365]
[1740063769595,0.73264,2729.3,2728.9,4.09771]
[1740063769903,3.2078,2729.1,2728.4,3.36]
[1740063770098,3.2078,2729.1,2728.8,0.00550227]
[1740063770297,0.73273,2728.9,2728.8,0.00550227]
[1740063770701,3.2078,2729.1,2729.0,0.7327]
[1740063771105,3.2078,2729.1,2728.8,4.08924227]
[1740063771410,3.2078,2729.1,2728.8,3.35650227]
[1740063771594,3.2078,2729.1,2728.8,0.00550227]
[1740063772002,3.21330227,2729.4,2729.3,0.73262]
[1740063772201,0.00550227,2729.4,2728.9,3.2078]
[1740063772401,0.73811227,2729.4,2729.0,0.73268]
[1740063772710,3.21330227,2729.4,2729.3,0.73262]
[1740063772898,3.21330227,2729.4,2728.8,3.35250227]
[1740063773102,0.73265,2729.2,2728.9,0.73271]
[1740063773503,3.94051,2729.0,2728.8,0.00550227]
[1740063773703,3.2078,2729.0,2728.3,6.308]
[1740063774013,3.2078,2728.7,2728.3,3.333]
[1740063774317,0.73282,2728.6,2728.4,0.73285]
[1740063774607,3.2078,2728.7,2728.5,0.73281]
[1740063774810,3.2078,2728.7,2728.3,3.333]
[1740063775007,3.9406,2728.7,2728.5,0.73282]
[1740063775211,3.2078,2728.7,2728.2,3.21330227]
[1740063775412,0.73282,2728.6,2728.4,0.73286]
[1740063775603,0.73282,2728.6,2728.2,3.21330227]
[1740063775604,3.2078,2728.7,2728.2,0.00550227]
[1740063776012,6.1678,2729.0,2728.2,0.00550227]
[1740063776212,6.1678,2729.0,2728.3,1.83223]
[1740063776412,0.7328,2728.7,2728.2,3.32050227]
[1740063776610,0.73283,2728.6,2728.2,3.32050227]
[1740063776915,3.2078,2728.4,2728.3,0.73289]
[1740063777513,0.73289,2728.3,2728.2,0.00550227]
[1740063777712,3.2078,2728.4,2728.3,0.73289]
[1740063778016,3.2078,2728.4,2728.2,0.00550227]
[1740063778209,3.2078,2728.4,2728.2,0.73840227]
[1740063778407,0.73289,2728.3,2728.2,0.00550227]
[1740063778718,3.2078,2728.4,2728.3,0.73289]
[1740063779218,3.2078,2728.8,2728.2,0.00550227]
[1740063779418,3.2078,2728.8,2728.7,0.73278]
[1740063779619,0.73272,2729.0,2728.9,0.73271]
[1740063779820,3.94049,2729.1,2728.9,0.73271]
[1740063780011,3.2078,2729.1,2728.9,0.73271]
[1740063780207,0.00550227,2729.4,2729.3,0.73262]
[1740063780509,0.00550227,2729.4,2728.9,3.293]
[1740063780706,0.00550227,2729.4,2729.1,0.73267]
[1740063780913,0.00550227,2729.4,2728.9,3.293]
[1740063781212,0.00550227,2729.4,2729.3,0.73262]
[1740063781416,0.00550227,2729.4,2728.9,3.293]
[1740063781611,0.00550227,2729.4,2728.9,5.12482]
[1740063781821,0.00550227,2729.4,2729.3,0.73262]
[1740063782020,2.27e-06,2729.4,2729.3,0.73262]
[1740063782316,2.27e-06,2729.4,2729.3,10.63262]
[1740063783018,2.27e-06,2729.4,2729.3,4.63262]
[1740063783612,2.27e-06,2729.4,2729.3,10.63262]
[1740063784319,2.27e-06,2729.4,2729.3,4.63262]
[1740063785020,2.27e-06,2729.4,2729.1,3.2078]
[1740063785421,3.2078,2729.3,2728.7,2.975]
[1740063785622,0.73273,2728.9,2728.7,3.70777]
[1740063785821,0.73271,2729.0,2728.7,2.975]
[1740063786118,2.27e-06,2729.4,2728.8,3.2078]
[1740063786311,2.27e-06,2729.4,2729.1,3.2078]
[1740063786519,2.27e-06,2729.4,2729.2,0.73264]
[1740063786722,2.27e-06,2729.4,2729.0,3.2078]
[1740063787322,2.27e-06,2729.4,2729.3,0.73262]
[1740063787723,2.27e-06,2729.4,2729.3,3.94042]
[1740063788022,2.27e-06,2729.4,2729.3,7.19642]
[1740063788521,2.27e-06,2729.4,2729.3,10.17142]
[1740063788823,2.27e-06,2729.4,2729.3,14.07142]
[1740063789627,0.73260227,2729.4,2729.3,2.975]
[1740063789823,0.73263,2729.3,2729.1,0.73266]
[1740063790018,2.27e-06,2729.4,2728.8,2.975]
[1740063790216,2.27e-06,2729.4,2728.8,3.2078]
[1740063790421,0.73261227,2729.4,2729.2,0.73263]
[1740063790621,2.27e-06,2729.4,2729.2,0.73263]
[1740063790821,2.27e-06,2729.4,2729.3,0.73262]
[1740063791230,2.27e-06,2729.4,2729.3,3.97162]
[1740063791828,2.27e-06,2729.4,2729.3,6.94662]
[1740063792619,2.27e-06,2729.4,2729.3,13.32072786]
[1740063792821,2.27e-06,2729.4,2729.3,10.34572786]
[1740063793221,2.27e-06,2729.4,2729.3,7.87162]
[1740063793621,2.27e-06,2729.4,2729.3,5.00714013]
[1740063793822,2.27e-06,2729.4,2729.3,8.23114013]
[1740063794024,2.27e-06,2729.4,2729.3,8.41602]
[1740063794320,2.27e-06,2729.4,2729.3,8.79108864]
[1740063795230,2.27e-06,2729.4,2729.3,14.79108864]
[1740063795525,2.27e-06,2729.4,2729.3,8.79108864]
[1740063795924,2.27e-06,2729.4,2729.3,8.79128299]
[1740063796422,2.27e-06,2729.4,2729.3,17.76628299]
[1740063797933,2.27e-06,2729.4,2729.3,17.75328299]
[1740063798623,2.27e-06,2729.4,2729.3,8.54228299]
[1740063798825,2.27e-06,2729.4,2729.3,11.74728299]
[1740063799127,2.27e-06,2729.4,2729.3,4.08288299]
[1740063799322,2.27e-06,2729.4,2729.3,10.08288299]
[1740063799524,2.27e-06,2729.4,2729.3,17.18288299]
[1740063800830,2.27e-06,2729.4,2729.3,14.20788299]
[1740063801532,2.27e-06,2729.4,2729.3,20.12688299]
[1740063801734,2.27e-06,2729.4,2729.3,1.10788299]